bitfinex/quotes_ETHUSD_20220731
["timestamp","ask_amount","ask_price","bid_price","bid_amount"]
[1659299492733,0.17247381,1713.7,1713.5,2.89804672]
[1659299492937,4.13202159,1713.7,1713.5,2.89804672]
[1659299493275,3.95954778,1713.6,1713.5,2.89804672]
[1659299493574,4.13202159,1713.7,1713.5,2.89804672]
[1659299493955,0.17247381,1713.7,1713.5,2.89804672]
[1659299494482,0.17247381,1713.7,1713.5,6.39804672]
[1659299494684,0.17247381,1713.7,1713.6,5.89804672]
[1659299494873,0.11498254,1713.7,1713.6,5.89804672]
[1659299497774,0.29151,1714.0,1713.7,0.05601746]
[1659299497966,0.05,1714.3,1714.0,0.05]
[1659299498176,0.05,1714.6,1714.2,6.44804672]
[1659299498382,0.29142,1714.6,1714.4,3.5]
[1659299498581,0.29142,1714.6,1714.5,2.89804672]
[1659299498879,7.5883,1714.9,1714.5,5.94804672]
[1659299498880,3.95954778,1714.9,1714.5,5.94804672]
[1659299499096,0.29138,1715.0,1714.8,2.89804672]
[1659299499308,0.29138,1715.0,1714.9,6.5]
[1659299499512,10.57445555,1715.0,1714.9,5.89804672]
[1659299501017,4.55092778,1715.0,1714.9,5.89804672]
[1659299502916,4.60544536,1715.0,1714.9,5.89804672]
[1659299503290,4.60544536,1715.0,1714.9,9.39804672]
[1659299503536,0.64589758,1715.0,1714.9,9.39804672]
[1659299503689,0.34589758,1715.0,1714.9,9.39804672]
[1659299503897,0.34589758,1715.0,1714.9,10.06104672]
[1659299504095,0.05451758,1715.0,1714.9,10.06104672]
[1659299504715,0.2913,1715.2,1715.0,0.05348242]
[1659299504916,0.29127,1715.5,1715.3,0.05]
[1659299505230,3.2484,1715.9,1715.4,6.39804672]
[1659299505231,4.00954778,1715.9,1715.4,6.39804672]
[1659299505445,5.50237699,1716.1,1715.7,3.5]
[1659299505446,9.07492477,1716.1,1715.7,3.5]
[1659299505615,5.06537699,1716.1,1715.9,3.5]
[1659299505798,5.06537699,1716.1,1716.0,5.89804672]
[1659299506241,0.05,1716.5,1716.0,5.89804672]
[1659299506427,3.95954778,1716.6,1716.2,3.5]
[1659299506734,3.95954778,1716.4,1716.3,5.89804672]
[1659299507234,4.25954778,1716.4,1716.3,5.89804672]
[1659299507906,0.3,1716.4,1716.3,5.89804672]
[1659299508147,0.29114,1716.5,1716.3,3.0]
[1659299508322,8.86916689,1716.4,1716.1,3.0]
[1659299508527,7.10078778,1716.2,1716.0,3.0]
[1659299508725,3.95954778,1716.1,1715.8,1.0]
[1659299508938,3.95954778,1716.1,1715.7,3.0]
[1659299508939,0.3,1716.0,1715.9,2.89804672]
[1659299509264,4.25954778,1716.0,1715.9,5.89804672]
[1659299509809,4.25954778,1716.0,1715.5,0.05]
[1659299510011,4.25954778,1716.0,1715.6,6.39804672]
[1659299510012,3.95954778,1715.7,1715.6,6.39804672]
[1659299510213,0.3,1715.7,1715.6,6.39804672]
[1659299510528,0.29127,1715.9,1715.6,6.39804672]
[1659299510712,0.29127,1715.9,1715.7,2.89804672]
[1659299511908,3.95954778,1715.8,1715.7,2.89804672]
[1659299512110,4.40954778,1715.8,1715.7,2.89804672]
[1659299512311,4.70954778,1715.8,1715.5,2.89804672]
[1659299512549,0.75,1715.8,1715.5,2.89804672]
[1659299512766,3.95954778,1715.6,1715.5,2.89804672]
[1659299512964,4.25954778,1715.6,1715.5,2.89804672]
[1659299514369,4.40954778,1715.6,1715.5,5.89804672]
[1659299514726,4.5026541,1715.6,1715.1,0.05]
[1659299514927,0.15,1715.3,1715.2,2.89804672]
[1659299515126,4.40954778,1715.3,1715.2,2.89804672]
[1659299515941,0.3,1715.3,1715.2,2.89804672]
[1659299516141,2.20796911,1715.5,1715.2,6.39804672]
[1659299516142,0.3,1715.4,1715.2,6.39804672]
[1659299516347,0.3,1715.4,1715.3,2.89804672]
[1659299516576,0.3,1715.4,1715.3,5.89804672]
[1659299518762,0.39310632,1715.4,1715.3,5.89804672]
[1659299519977,4.3526541,1715.4,1715.3,5.89804672]
[1659299520244,0.39310632,1715.4,1715.3,5.89804672]
[1659299521383,0.39310632,1715.4,1715.3,3.0]
[1659299521384,5.16227321,1715.4,1715.3,3.0]
[1659299521561,5.16227321,1715.4,1714.9,3.55]
[1659299521740,3.95954778,1715.1,1715.0,2.89804672]
[1659299522069,4.25954778,1715.1,1715.0,2.89804672]
[1659299522875,4.3526541,1715.1,1715.0,2.89804672]
[1659299523442,4.5026541,1715.1,1715.0,2.89804672]
[1659299524107,0.54310632,1715.1,1715.0,2.89804672]
[1659299524279,0.09310632,1715.1,1715.0,6.57403108]
[1659299524665,0.09310632,1715.1,1715.0,9.57403108]
[1659299525877,4.0526541,1715.1,1715.0,9.57403108]
[1659299526070,4.05008863,1715.1,1715.0,9.39804672]
[1659299526405,4.05008863,1715.1,1715.0,5.89804672]
[1659299527272,0.09054085,1715.1,1715.0,5.89804672]
[1659299527473,0.09054085,1715.1,1715.0,9.39804672]
[1659299528130,0.09054085,1715.1,1715.0,9.57403108]
[1659299529675,0.09054085,1715.1,1715.0,6.07403108]
[1659299529881,0.09054085,1715.1,1715.0,9.57403108]
[1659299532198,0.09054085,1715.1,1715.0,3.0]
[1659299532401,4.05008863,1715.1,1714.8,4.63221845]
[1659299532566,1.74848,1715.0,1714.8,4.63221845]
[1659299532768,6.00802778,1715.0,1714.8,4.63221845]
[1659299533472,6.00802778,1715.0,1714.8,1.63221845]
[1659299533686,7.46509778,1715.0,1714.8,1.63221845]
[1659299534284,6.00802778,1715.0,1714.9,6.39804672]
[1659299534500,6.00802778,1715.0,1714.9,9.39804672]
[1659299535015,6.00802778,1715.0,1714.9,5.89804672]
[1659299535275,6.00802778,1715.0,1714.9,2.89804672]
[1659299537391,1.74848,1715.0,1714.9,6.39804672]
[1659299537585,1.74848,1715.0,1714.9,9.39804672]
[1659299538088,5.70802778,1715.0,1714.9,9.39804672]
[1659299538483,5.70802778,1715.0,1714.9,3.0]
[1659299538734,6.00802778,1715.0,1714.9,3.0]
[1659299539564,6.00802778,1715.0,1714.9,5.89804672]
[1659299540564,2.04848,1715.0,1714.9,9.39804672]
[1659299541057,6.00802778,1715.0,1714.9,9.39804672]
[1659299541234,6.00802778,1715.0,1714.9,5.89804672]
[1659299542369,6.00802778,1715.0,1714.9,9.57403108]
[1659299542370,2.04848,1715.0,1714.9,9.57403108]
[1659299543880,6.00802778,1715.0,1714.9,9.57403108]
[1659299544577,0.59141,1715.0,1714.9,9.57403108]
[1659299544748,0.29141,1715.0,1714.9,9.57403108]
[1659299545778,0.29141,1715.0,1714.9,10.18803108]
[1659299546575,0.289165,1715.0,1714.9,10.18803108]
[1659299547363,0.289165,1715.0,1714.9,10.47725233]
[1659299549815,0.08969398,1715.1,1714.9,10.77725233]
[1659299550106,0.08969398,1715.1,1715.0,5.89804672]
[1659299550467,0.08969398,1715.1,1715.0,6.07403108]
[1659299552710,0.08969398,1715.1,1715.0,6.07028729]
[1659299555225,0.59125,1715.2,1715.0,7.81791849]
[1659299555429,0.59125,1715.2,1715.1,6.39804672]
[1659299555751,0.59125,1715.2,1715.1,9.39804672]
[1659299555926,0.59125,1715.2,1715.1,9.57403108]
[1659299556310,0.6810865,1715.2,1715.1,9.57403108]
[1659299556512,1.41289,1715.3,1715.2,0.547]
[1659299556807,15.23604778,1716.1,1715.6,0.05]
[1659299557007,0.05794171,1716.7,1716.0,3.5]
[1659299557008,2.9646,1716.3,1716.0,3.5]
[1659299557268,2.9646,1716.3,1716.1,5.89804672]
[1659299557269,3.95954778,1716.3,1716.1,5.89804672]
[1659299557410,11.291,1716.6,1716.2,2.89804672]
[1659299557411,0.29113,1716.4,1716.2,2.89804672]
[1659299557611,0.29113,1716.4,1716.3,3.0]
[1659299557909,4.25067778,1716.4,1716.3,3.0]
[1659299558241,5.14769689,1716.4,1715.9,3.05]
[1659299558449,5.14769689,1716.4,1715.9,5.89804672]
[1659299558450,0.04752758,1716.3,1715.9,5.89804672]
[1659299558643,3.95954778,1716.1,1715.9,5.89804672]
[1659299559017,4.25076778,1716.1,1715.9,5.89804672]
[1659299559626,4.55076778,1716.1,1715.9,5.89804672]
[1659299559965,0.59122,1716.1,1715.9,5.89804672]
[1659299560318,3.95954778,1716.0,1715.9,5.89804672]
[1659299560540,3.95954778,1716.0,1715.9,2.89804672]
[1659299561868,3.95954778,1716.0,1715.9,5.89804672]
[1659299562979,3.95954778,1716.0,1715.9,7.35432672]
[1659299563682,4.05096804,1716.0,1715.9,7.35432672]
[1659299567287,4.00525791,1716.0,1715.9,7.35432672]
[1659299578674,4.00263868,1716.0,1715.9,7.35432672]
[1659299585647,0.04571013,1716.0,1715.9,7.35432672]
[1659299585875,1.7475,1716.1,1716.0,5.0]
[1659299586097,1.7475,1716.1,1716.0,14.39804672]
[1659299586386,1.7475,1716.1,1716.0,14.57403108]
[1659299587143,2.0475,1716.1,1716.0,14.57403108]
[1659299587391,2.0475,1716.1,1716.0,14.60701907]
[1659299588344,1.9475,1716.1,1716.0,14.60701907]
[1659299588954,1.9475,1716.1,1716.0,14.43103471]
[1659299592022,1.9475,1716.1,1716.0,9.43103471]
[1659299594995,6.25442855,1716.1,1716.0,3.03298799]
[1659299595199,6.25442855,1716.1,1716.0,0.03298799]
[1659299596225,5.90442855,1716.1,1716.0,0.03298799]
[1659299597616,6.25442855,1716.1,1716.0,0.03298799]
[1659299610257,6.05442855,1716.1,1716.0,0.03298799]
[1659299611496,6.239,1715.9,1715.6,6.17329452]
[1659299611670,0.35,1715.8,1715.7,3.0]
[1659299611867,0.15,1715.6,1715.5,3.0]
[1659299612109,4.10692855,1715.6,1715.5,2.89804672]
[1659299612315,4.40692855,1715.6,1715.1,5.00663]
[1659299612467,4.40692855,1715.6,1715.2,2.89804672]
[1659299612468,3.95692855,1715.4,1715.2,2.89804672]
[1659299612802,4.25692855,1715.4,1715.3,1.45642]
[1659299613011,4.25692855,1715.4,1715.3,8.03045108]
[1659299613305,0.3,1715.4,1715.3,8.03045108]
[1659299613676,0.3,1715.4,1715.3,11.03045108]
[1659299613878,0.34410955,1715.4,1715.3,11.03045108]
[1659299616632,0.34410955,1715.4,1715.3,7.53045108]
[1659299616784,0.34410955,1715.4,1715.3,11.03045108]
[1659299617391,0.34410955,1715.4,1715.3,7.35446672]
[1659299617803,4.3010381,1715.4,1715.3,7.35446672]
[1659299618180,4.3010381,1715.4,1715.3,11.03068263]
[1659299618381,4.3010381,1715.4,1715.3,7.53068263]
[1659299618582,4.3010381,1715.4,1715.3,11.03068263]
[1659299620237,4.3010381,1715.4,1715.3,7.53068263]
[1659299620388,4.3010381,1715.4,1715.3,11.03068263]
[1659299620591,0.34410955,1715.4,1715.3,11.03068263]
[1659299620822,0.34410955,1715.4,1715.3,11.81366699]
[1659299621026,0.34410955,1715.4,1715.3,11.86366699]
[1659299621335,0.34410955,1715.4,1715.3,12.11366699]
[1659299621336,0.04410955,1715.4,1715.3,12.11366699]
[1659299621687,1.74748,1715.5,1715.3,12.11366699]
[1659299621900,1.74748,1715.5,1715.4,5.89804672]
[1659299622100,2.04748,1715.5,1715.4,5.89804672]
[1659299622300,2.04748,1715.5,1715.4,6.07403108]
[1659299622533,1.74748,1715.5,1715.4,6.07403108]
[1659299623050,0.29133,1715.5,1715.4,6.07403108]
[1659299626905,0.29133,1715.5,1715.4,6.36358141]
[1659299628914,0.29133,1715.5,1715.4,6.18759705]
[1659299636368,0.28898869,1715.5,1715.4,6.18759705]
[1659299640418,0.04410955,1715.6,1715.4,6.18759705]
[1659299640760,4.24809855,1715.7,1715.4,6.18759705]
[1659299640761,5.9821,1716.0,1715.6,0.2911551]
[1659299641040,17.841,1716.7,1716.1,0.05]
[1659299641041,0.05,1716.3,1716.1,0.05]
[1659299641218,3.95692855,1716.6,1716.2,7.00104672]
[1659299641419,0.4873,1716.9,1716.5,7.00104672]
[1659299641632,2.34,1717.0,1716.2,0.17598436]
[1659299641633,11.72,1717.1,1716.7,4.107]
[1659299641830,0.4372,1717.2,1716.8,5.89804672]
[1659299642036,4.39412855,1717.2,1716.9,2.89804672]
[1659299642236,4.39412855,1717.2,1717.0,3.0]
[1659299642549,4.39412855,1717.2,1716.9,2.89804672]
[1659299642550,8.044,1717.0,1716.9,2.89804672]
[1659299642692,0.15,1716.8,1716.5,0.05]
[1659299642891,3.95692855,1716.6,1716.5,2.89804672]
[1659299643125,3.95692855,1716.6,1716.5,6.39804672]
[1659299643309,4.39422855,1716.7,1716.5,6.39804672]
[1659299643520,0.4373,1716.9,1716.6,2.89804672]
[1659299644201,0.4373,1716.9,1716.7,3.0]
[1659299644549,0.4373,1716.9,1716.7,5.89804672]
[1659299644550,4.39422855,1716.9,1716.7,5.89804672]
[1659299644756,3.95692855,1716.8,1716.7,3.0]
[1659299644966,3.95692855,1716.8,1716.3,3.05]
[1659299644967,8.24422855,1716.8,1716.3,3.05]
[1659299645116,0.4373,1716.7,1716.4,2.89804672]
[1659299645325,0.4373,1716.7,1716.6,0.03783578]
[1659299645523,0.3,1716.6,1716.2,0.05]
[1659299645735,3.95692855,1716.3,1716.0,0.05]
[1659299645953,0.4374,1716.2,1716.0,2.89804672]
[1659299646156,3.95692855,1716.1,1716.0,2.89804672]
[1659299646322,4.25692855,1716.1,1715.7,1.0]
[1659299646657,4.25692855,1715.8,1715.5,0.05]
[1659299646857,4.25692855,1715.8,1715.5,2.89804672]
[1659299646858,3.95692855,1715.6,1715.5,2.89804672]
[1659299647212,4.25692855,1715.6,1715.5,2.89804672]
[1659299647451,0.3,1715.6,1715.5,6.39804672]
[1659299647612,4.73572855,1716.0,1715.5,6.39804672]
[1659299647825,1.0288,1716.0,1715.6,2.89804672]
[1659299648052,5.28572855,1716.0,1715.6,2.89804672]
[1659299648478,5.74534766,1716.0,1715.7,3.0]
[1659299648631,5.74534766,1716.0,1715.7,5.89804672]
[1659299648834,1.78841911,1716.0,1715.7,5.89804672]
[1659299649032,3.24486911,1716.0,1715.7,3.0]
[1659299649244,3.24486911,1716.0,1715.6,3.03415018]
[1659299649245,3.95692855,1715.8,1715.6,3.03415018]
[1659299649444,0.59131,1715.8,1715.6,2.9321969]
[1659299649675,2.04788,1715.8,1715.6,2.9321969]
[1659299649837,2.04788,1715.8,1715.7,3.0]
[1659299650274,6.00480855,1715.8,1715.7,3.0]
[1659299650987,0.35,1715.7,1715.6,0.03415018]
[1659299651297,4.60692855,1715.7,1715.6,0.03415018]
[1659299651440,8.10692855,1715.7,1715.6,0.03415018]
[1659299651642,18.49472855,1715.7,1715.6,0.03415018]
[1659299651868,14.99472855,1715.7,1715.6,0.03415018]
[1659299652682,15.43232855,1715.7,1715.6,0.03415018]
[1659299653320,5.04452855,1715.7,1715.6,0.03415018]
[1659299656807,4.60692855,1715.7,1715.6,0.03415018]
[1659299657592,10.72792855,1715.7,1715.6,0.03415018]
[1659299658635,4.60692855,1715.7,1715.6,0.03415018]
[1659299658995,5.04452855,1715.7,1715.6,0.03415018]
[1659299659659,4.69452855,1715.7,1715.6,0.03415018]
[1659299659863,4.25692855,1715.7,1715.6,0.03415018]
[1659299660042,9.18102766,1715.8,1715.6,1.50315018]
[1659299660244,6.46442766,1715.8,1715.6,4.67913454]
[1659299661156,6.46442766,1715.8,1715.6,4.09013454]
[1659299661471,6.46442766,1715.8,1715.6,3.21013454]
[1659299661625,2.50749911,1715.8,1715.6,3.21013454]
[1659299661825,3.95692855,1715.7,1715.6,4.49044018]
[1659299662026,2.50749911,1715.8,1715.6,4.49044018]
[1659299662275,6.46442766,1715.8,1715.6,4.49044018]
[1659299663160,2.50749911,1715.8,1715.6,4.49044018]
[1659299663418,10.66302128,1715.7,1715.6,0.03415018]
[1659299663565,10.66302128,1715.7,1715.2,0.05]
[1659299663731,12.63668878,1715.6,1715.0,0.05]
[1659299663928,12.63668878,1715.6,1715.0,2.89804672]
[1659299663929,11.24111,1715.6,1715.0,2.89804672]
[1659299664149,3.95442128,1715.1,1715.0,2.89804672]
[1659299664660,3.95442128,1715.1,1715.0,6.39804672]
[1659299664661,0.3,1715.1,1715.0,6.39804672]
[1659299664859,0.3,1715.1,1715.0,9.39804672]
[1659299665057,2.0483,1715.2,1715.0,11.03095108]
[1659299665370,2.0483,1715.2,1715.1,5.89804672]
[1659299665727,2.0483,1715.2,1715.1,6.07403108]
[1659299666681,0.59138,1715.2,1715.1,6.07403108]
[1659299666835,0.29138,1715.2,1715.1,6.07403108]
[1659299668010,0.29138,1715.2,1715.1,6.11243759]
[1659299668171,0.59138,1715.2,1715.1,6.11243759]
[1659299669016,0.59138,1715.2,1715.1,6.16243759]
[1659299669200,0.05,1715.6,1715.1,6.76543759]
[1659299669403,17.58742128,1715.8,1715.5,4.107]
[1659299669612,7.04052128,1715.8,1715.6,5.89804672]
[1659299669812,3.95442128,1715.8,1715.6,5.89804672]
[1659299670482,0.29122,1715.7,1715.6,16.09074672]
[1659299671958,0.29122,1715.7,1715.6,16.13257692]
[1659299672114,0.29122,1715.7,1715.6,17.01257692]
[1659299672315,0.29122,1715.7,1715.6,17.60157692]
[1659299673468,0.29122,1715.7,1715.6,17.59897943]
[1659299675482,0.29122,1715.7,1715.6,17.00997943]
[1659299676203,0.29122,1715.7,1715.6,17.59897943]
[1659299676403,0.29122,1715.7,1715.6,17.00997943]
[1659299676700,4.24564128,1715.7,1715.6,17.00997943]
[1659299676858,0.29122,1715.7,1715.6,16.12997943]
[1659299677059,0.29122,1715.7,1715.6,7.39341943]
[1659299677060,4.24564128,1715.7,1715.6,7.39341943]
[1659299677505,4.69564128,1715.7,1715.6,1.49537271]
[1659299677661,4.99564128,1715.7,1715.6,1.49537271]
[1659299680506,4.84564128,1715.7,1715.6,1.49537271]
[1659299680869,4.54564128,1715.7,1715.6,1.49537271]
[1659299681063,4.54564128,1715.7,1715.6,5.37537271]
[1659299681264,4.54564128,1715.7,1715.6,8.86241943]
[1659299685510,4.54564128,1715.7,1715.6,8.27341943]
[1659299687372,4.54564128,1715.7,1715.6,7.39341943]
[1659299694323,4.54564128,1715.7,1715.6,10.89341943]
[1659299694858,4.54564128,1715.7,1715.6,7.39341943]
[1659299695021,4.54564128,1715.7,1715.6,10.89341943]
[1659299695915,4.54564128,1715.7,1715.6,7.39341943]
[1659299696115,4.54564128,1715.7,1715.6,10.89341943]
[1659299697666,4.54564128,1715.7,1715.6,7.39341943]
[1659299697870,4.54564128,1715.7,1715.6,4.49537271]
[1659299698070,4.54564128,1715.7,1715.6,1.49537271]
[1659299698381,4.69274276,1715.7,1715.6,1.49537271]
[1659299698535,4.69274276,1715.7,1715.6,0.03923271]
[1659299699938,5.13034276,1715.7,1715.6,0.03923271]
[1659299700140,4.98034276,1715.7,1715.6,0.03923271]
[1659299701551,5.43996187,1715.7,1715.6,0.03923271]
[1659299701855,5.00236187,1715.7,1715.6,0.03923271]
[1659299702936,4.54274276,1715.7,1715.6,0.03923271]
[1659299709362,4.54274276,1715.7,1715.6,0.49765763]
[1659299716304,4.58580607,1715.7,1715.6,0.49765763]
[1659299718572,4.58324752,1715.7,1715.6,0.49765763]
[1659299728835,0.32882624,1715.7,1715.6,12.15597655]
[1659299729037,0.32882624,1715.7,1715.6,15.33196091]
[1659299729038,0.04306331,1715.7,1715.6,15.33196091]
[1659299729235,0.05,1716.1,1715.7,0.05]
[1659299729434,5.46031128,1716.4,1716.0,4.9559]
[1659299729667,5.46031128,1716.4,1716.2,3.5]
[1659299729668,1.45589,1716.4,1716.2,3.5]
[1659299729880,1.74707,1716.4,1716.2,3.5]
[1659299730275,1.74707,1716.4,1716.3,3.0]
[1659299730933,2.04707,1716.4,1716.3,3.0]
[1659299731168,6.00149128,1716.4,1716.3,3.0]
[1659299731367,5.70149128,1716.4,1716.3,3.0]
[1659299732208,5.70149128,1716.4,1716.2,3.0]
[1659299732706,2.04707,1716.4,1716.2,3.0]
[1659299733269,3.95442128,1716.3,1716.2,4.45605]
[1659299733465,3.95442128,1716.3,1716.2,4.5012137]
[1659299734492,3.5031,1716.4,1716.2,4.5012137]
[1659299734711,3.50312,1716.4,1716.2,5.9572037]
[1659299734956,0.3,1716.4,1716.2,5.9572037]
[1659299735219,0.2912,1716.5,1716.3,1.45592]
[1659299735715,3.20311,1716.4,1716.3,1.45592]
[1659299735921,3.50311,1716.4,1716.3,1.45592]
[1659299737417,3.50311,1716.4,1716.3,1.50102199]
[1659299738771,3.50311,1716.4,1716.3,1.49868014]
[1659299738929,7.45753128,1716.4,1716.3,0.04276014]
[1659299739225,16.44583128,1716.4,1716.3,0.04276014]
[1659299740330,19.49923128,1716.4,1716.3,0.04276014]
[1659299741983,14.01593128,1716.4,1716.3,0.04276014]
[1659299742618,13.76593128,1716.4,1716.3,0.04276014]
[1659299743231,13.32853128,1716.4,1716.3,0.04276014]
[1659299745256,7.20753128,1716.4,1716.3,0.04276014]
[1659299745999,0.15,1716.2,1715.9,0.05]
[1659299746335,0.15,1716.2,1715.7,0.45842492]
[1659299746336,3.95442128,1716.0,1715.7,0.45842492]
[1659299746485,0.29135,1715.9,1715.7,0.45842492]
[1659299746783,3.4962,1715.9,1715.4,0.05]
[1659299746966,0.29135,1715.9,1715.4,2.89804672]
[1659299747176,0.29135,1715.9,1715.8,0.45842492]
[1659299747343,1.7481,1715.9,1715.8,0.45842492]
[1659299747744,5.70252128,1715.9,1715.8,0.45842492]
[1659299748478,5.70252128,1715.9,1715.8,0.50363384]
[1659299748690,5.70252128,1715.9,1715.8,0.43363384]
[1659299749347,5.70252128,1715.9,1715.8,0.48354181]
[1659299750649,5.36131981,1715.9,1715.8,1.89010174]
[1659299751997,5.65266981,1715.9,1715.8,1.89010174]
[1659299752155,5.65266981,1715.9,1715.8,2.18140554]
[1659299753198,5.65266981,1715.9,1715.8,0.72493764]
[1659299754659,11.51313219,1715.9,1715.8,0.72493764]
[1659299755267,11.51313219,1715.9,1715.8,0.76552316]
[1659299759709,11.86313219,1715.9,1715.8,0.76552316]
[1659299762163,11.51313219,1715.9,1715.8,0.76552316]
[1659299770909,11.50916298,1715.9,1715.8,0.76552316]
[1659299775512,15.35916298,1715.9,1715.8,0.76552316]
[1659299775731,21.48016298,1715.9,1715.4,0.05]
[1659299775949,15.469,1715.8,1715.3,0.3]
[1659299776241,15.469,1715.8,1715.2,3.3]
[1659299776242,4.24582128,1715.4,1715.2,3.3]
[1659299776614,4.54582128,1715.4,1715.2,0.3]
[1659299776803,4.54582128,1715.4,1715.0,4.757]
[1659299777150,4.54582128,1715.4,1715.2,0.2914001]
[1659299777434,4.54582128,1715.4,1715.2,3.5914001]
[1659299777847,3.79688,1715.4,1715.2,3.5914001]
[1659299778204,3.95442128,1715.3,1715.2,3.5914001]
[1659299778647,3.95442128,1715.3,1715.2,0.2914001]
[1659299778819,7.80442128,1715.3,1715.2,0.2914001]
[1659299779146,7.80442128,1715.3,1714.8,0.2264936]
[1659299779147,0.15,1715.1,1714.8,0.05]
[1659299779444,4.25442128,1714.9,1714.5,0.05]
[1659299779599,4.25442128,1714.9,1714.3,0.05]
[1659299779600,0.3,1714.9,1714.3,0.05]
[1659299779803,4.25442128,1714.5,1714.4,3.5]
[1659299780048,4.25442128,1714.5,1714.4,6.39804672]
[1659299780267,4.24592128,1714.6,1714.4,9.39804672]
[1659299780483,0.2915,1714.6,1714.5,5.89804672]
[1659299780929,4.24592128,1714.6,1714.5,5.89804672]
[1659299781530,4.24592128,1714.6,1714.5,5.84804672]
[1659299782488,0.2915,1714.6,1714.5,5.84804672]
[1659299782653,4.24592128,1714.6,1714.5,5.84804672]
[1659299783273,4.24592128,1714.6,1714.5,2.95]
[1659299783579,0.3,1714.5,1714.4,3.3]
[1659299783750,0.3,1714.5,1714.4,6.19804672]
[1659299784203,4.25442128,1714.5,1714.4,6.19804672]
[1659299784994,4.25442128,1714.5,1714.4,3.25]
[1659299785187,4.25442128,1714.5,1714.3,3.206764]
[1659299785421,3.95442128,1714.4,1714.1,8.1714662]
[1659299785588,0.3,1714.5,1713.9,5.89562274]
[1659299785811,1.7497,1714.4,1714.0,2.84804672]
[1659299786009,3.95442128,1714.1,1714.0,6.34804672]
[1659299786211,0.05,1714.5,1714.0,12.34804672]
[1659299786420,2.04091,1714.9,1714.1,7.05104672]
[1659299786421,0.05,1714.7,1714.1,7.05104672]
[1659299786639,2.7632,1714.9,1714.2,6.39804672]
[1659299786846,3.95442128,1714.5,1714.2,10.37403108]
[1659299786990,5.70352128,1714.5,1714.3,3.0]
[1659299787196,1.7491,1714.5,1714.3,3.0]
[1659299787949,3.95442128,1714.4,1714.3,3.0]
[1659299788154,4.25442128,1714.4,1714.3,3.2915279]
[1659299789039,4.60442128,1714.4,1714.3,3.2915279]
[1659299789242,0.35,1714.3,1714.2,3.3]
[1659299789413,1.75785,1714.4,1714.2,0.3]
[1659299789616,3.95442128,1714.3,1714.2,0.3]
[1659299790457,3.95442128,1714.3,1714.1,0.2915712]
[1659299790816,3.95442128,1714.2,1714.1,0.2915712]
[1659299791236,0.15,1714.0,1713.9,1.7495378]
[1659299791503,4.10442128,1714.0,1713.9,0.2915978]
[1659299791659,4.0,1713.8,1713.7,0.53301]
[1659299791829,4.0,1713.8,1713.3,0.04319349]
[1659299791830,0.35,1713.6,1713.3,15.31319349]
[1659299792025,3.95442128,1713.4,1713.1,0.17725597]
[1659299792241,4.25442128,1713.4,1713.0,1.75832]
[1659299792462,4.54612128,1713.4,1713.0,0.3]
[1659299792673,1.05131911,1713.4,1713.0,0.3]
[1659299792874,4.25442128,1713.2,1713.0,3.3]
[1659299793079,0.3,1713.2,1713.1,2.89804672]
[1659299793435,0.3,1713.3,1713.1,2.89804672]
[1659299793638,3.95442128,1713.2,1713.1,2.89804672]
[1659299793878,0.3,1713.2,1713.1,2.89804672]
[1659299794050,3.95442128,1713.3,1713.1,3.18973652]
[1659299794233,3.95442128,1713.3,1713.2,6.19804672]
[1659299794635,3.95442128,1713.3,1713.2,6.14804672]
[1659299794833,2.65983911,1713.4,1713.2,6.14804672]
[1659299795035,6.61426039,1713.4,1713.2,6.14804672]
[1659299795790,2.65983911,1713.4,1713.2,6.14804672]
[1659299796097,6.61426039,1713.4,1713.2,6.14804672]
[1659299796267,2.05022,1713.4,1713.3,6.39804672]
[1659299796455,2.05022,1713.4,1713.3,10.00504672]
[1659299796658,0.5917,1713.4,1713.3,10.18103108]
[1659299797185,0.2917,1713.4,1713.3,10.18103108]
[1659299797554,0.2916,1713.6,1713.3,10.18103108]
[1659299797794,0.2916,1713.6,1713.5,3.5]
[1659299797954,0.2916,1713.6,1713.5,9.39804672]
[1659299798156,0.2916,1713.6,1713.5,9.57403108]
[1659299798362,0.438,1714.2,1713.6,0.341]
[1659299798587,3.95442128,1714.6,1714.1,0.603]
[1659299798804,0.15,1714.5,1714.2,3.19804672]
[1659299799048,1.74904,1714.5,1714.2,2.89804672]
[1659299799198,0.2915,1714.5,1714.2,2.89804672]
[1659299799507,4.24592128,1714.5,1714.3,0.3]
[1659299799683,4.24592128,1714.5,1714.2,3.19804672]
[1659299800160,3.95442128,1714.3,1714.2,0.3]
[1659299800364,3.95442128,1714.3,1714.0,3.5915339]
[1659299800567,3.95442128,1714.3,1714.1,3.19804672]
[1659299800568,0.29152,1714.3,1714.1,3.19804672]
[1659299800884,0.29152,1714.3,1714.2,5.89804672]
[1659299801087,0.29152,1714.3,1714.2,6.07403108]
[1659299802844,0.29152,1714.3,1714.2,5.57403108]
[1659299803617,0.29152,1714.3,1714.2,5.39804672]
[1659299804223,4.24594128,1714.3,1714.2,5.39804672]
[1659299804421,4.54594128,1714.3,1714.2,5.39804672]
[1659299804604,4.54594128,1714.3,1714.2,2.5]
[1659299805189,4.54594128,1714.3,1714.2,3.0]
[1659299805589,4.54594128,1714.3,1714.1,1.75749]
[1659299805818,0.59152,1714.3,1714.1,8.15553672]
[1659299806020,0.29152,1714.3,1714.2,3.0]
[1659299806238,0.29152,1714.3,1714.2,5.89804672]
[1659299809539,0.29152,1714.3,1714.2,3.0]
[1659299810141,0.29152,1714.3,1714.2,5.89804672]
[1659299811062,1.75755,1714.5,1714.2,6.72903108]
[1659299811063,0.29142,1714.5,1714.2,6.72903108]
[1659299811262,0.00042,1714.5,1714.4,4.38304672]
[1659299811480,0.05,1714.9,1714.4,14.80304672]
[1659299811646,7.04202128,1715.3,1714.4,14.80304672]
[1659299811647,0.05,1715.1,1714.8,3.5]
[1659299811847,1.457,1715.1,1714.8,6.69804672]
[1659299812289,0.29138,1715.0,1714.9,3.0]
[1659299813299,4.54580128,1715.0,1714.9,3.0]
[1659299813793,0.3,1715.0,1714.9,6.56104672]
[1659299813949,0.34134,1715.4,1714.9,6.73703108]
[1659299814158,8.9772,1715.6,1715.1,4.113]
[1659299814159,0.05,1715.6,1715.1,4.113]
[1659299814355,7.14902128,1715.8,1715.5,0.05]
[1659299814703,6.66142128,1715.8,1715.5,0.05]
[1659299815000,6.66142128,1715.8,1715.5,3.05]